Cogmind - Beta 17 @@@ ROGUE MODE // 2026.07.29 @ 21:09:16 Player: Mechanikum Result: Destroyed by EQ-QCP(R) with Subdweller Machine Gun Performance ------------- Evolutions (0) 0 Regions Visited (2) 400 Robots Destroyed (28) 140 Value Destroyed (644) 644 Prototype IDs (0) 0 Alien Tech Used (0) 0 Bonus (0) 0 TOTAL SCORE: 1184 Bonus ------- None Cogmind --------- Core Integrity 0/250 Matter 259/300 Energy 86/100 System Corruption 0% Temperature Cool (0) Movement Core (350) Ox6 Location -10/Subcaves Parts ------- > --- POWER (1) -------- (None) > --- PROPULSION (2) --- (None) > --- UTILITY (2) ------ Large Storage Unit > --- WEAPON (2) ------- (None) > --- INVENTORY (15) --- Ion Engine Light Ion Engine Light Treads Wheel Wheel Small Storage Unit Terrain Scanner Terrain Scan Processor Power Shielding Propulsion Shielding Propulsion Shielding Peak State ------------ > --- POWER ------------ Ion Engine > --- PROPULSION ------- Subdweller Monowheel Subdweller Monowheel > --- UTILITY ---------- Large Storage Unit Weapon Shielding > --- WEAPON ----------- Light Assault Rifle Grenade Launcher > --- INVENTORY -------- Ion Engine Light Ion Engine Light Treads Wheel Wheel Small Storage Unit Terrain Scanner Terrain Scan Processor Power Shielding Propulsion Shielding Propulsion Shielding Medium Laser Light Assault Rifle Multitool [Rating: 10] Favorites ----------- Power Ion Engine Engine Ion Engine Propulsion Light Treads Treads Light Treads Wheel Wheel Utility Large Storage Unit Device Terrain Scanner Storage Large Storage Unit Protection Propulsion Shielding Weapon Light Assault Rifle Energy Gun Medium Laser Ballistic Gun Light Assault Rifle Launcher Grenade Launcher Special Weapon Multitool Build | -11 -10 -10 ------- Run | Yrd Mat Sub Slots Evolved . | . . . Power . | . . . Propulsion . | . . . Utility . | . . . Weapon . | . . . Parts Attached 21 | 6 12 3 Power 3 | 1 2 . Engine 3 | 1 2 . Core . | . . . Reactor . | . . . Propulsion 7 | 2 3 2 Treads 3 | 2 1 . Leg . | . . . Wheel 4 | . 2 2 Hover . | . . . Flight . | . . . Utility 6 | 1 5 . Device 1 | . 1 . Storage 2 | 1 1 . Processor . | . . . Hackware . | . . . Protection 3 | . 3 . Artifact . | . . . Weapon 5 | 2 2 1 Energy Gun 1 | 1 . . Energy Cannon . | . . . Ballistic Gun 2 | 1 1 . Ballistic Cannon . | . . . Launcher 1 | . 1 . Special Weapon 1 | . . 1 Impact Weapon . | . . . Slashing Weapon . | . . . Piercing Weapon . | . . . Special Melee Weapon . | . . . Unidentified Prototypes . | . . . Parts Lost 12 | . 3 9 Power 1 | . . 1 Propulsion 4 | . 2 2 Utility 2 | . 1 1 Weapon 5 | . . 5 Highest Loss Streak 9 | . 2 9 To Critical Strikes . | . . . Average Backups 8 | . 7 11 Power 1 | . 1 2 Propulsion . | . . 1 Utility 3 | . 3 6 Weapon 1 | . 1 1 Tool/Special . | . . . Unused Backups 5 | . . 5 Power 2 | . . 2 Propulsion . | . . . Utility 3 | . . 3 Weapon . | . . . Tool/Special . | . . . Average Slot Usage (%) 97 | . 97 96 Engine 13 | . 14 12 Treads 20 | . 23 . Wheel 6 | . 2 27 Storage 14 | . 14 14 Protection 12 | . 12 13 Energy Gun 3 | . 3 . Ballistic Gun 21 | . 21 21 Launcher 3 | . 3 4 Peak Build Rating 10 | 6 8 10 Average Rating 7 | 4 7 8 On Entrance 4 | . 6 8 Avg Prop Armor Cover (%) . | . . . Naked Turns . | . . . Heaviest Build 30 | 11 30 30 Greatest Support 40 | 40 40 40 Greatest Overweight (x) 2 | 1 2 1 Average Overweight (x) . | . . . Largest Inventory Capacity 15 | 8 15 15 Average Capacity 13 | 7 13 15 Most Carried 14 | 1 11 14 Average Carried 8 | . 7 11 Final Capacity 15 | 8 15 15 Final Carried 11 | 1 11 11 Class Distribution -------------------- 100% | Mutant Dominant Class ---------------- Mutant | -10/Materials Mutant | -10/Subcaves Resources | -11 -10 -10 ----------- Run | Yrd Mat Sub Matter Collected 652 | 193 370 89 Remotely . | . . . Salvage Created 576 | . 508 68 Parts 49 | . 42 7 Haulers Intercepted . | . . . Recyclers Shooed . | . . . Parts Field Recycled . | . . . Retrieved Matter . | . . . Parts Self-Destructed 17 | . . 17 Prevented . | . . . Parts Restored . | . . . Kills | -11 -10 -10 ------- Run | Yrd Mat Sub Combat Hostiles Destroyed 25 | . 20 5 Guns 8 | . 6 2 AOE 17 | . 14 3 Classes Destroyed 6 | . 5 1 Builder 1 | . 1 . Recycler 1 | . 1 . Watcher 1 | . 1 . Swarmer 12 | . 9 3 Grunt 11 | . 11 . Subdweller 2 | . . 2 Best Kill Streak 8 | . 8 2 Combat Bots Only 6 | . 6 2 Max Kills in Single Turn 4 | . 4 2 Gunslinging . | . . . Exploded 3 | . 3 2 Melee . | . . . Uniques/NPCs Destroyed . | . . . Combat | -11 -10 -10 -------- Run | Yrd Mat Sub Hostile Shots Fired 181 | . 127 54 Missed 56 | . 40 16 Hits 125 | . 87 38 Projectile 125 | . 87 38 Damage Taken 1329 | . 813 516 Core 261 | . 147 114 Absorbed by Shields . | . . . Redirected to Shielding 121 | . 70 51 Regen/Repaired (Parts) 53 | . 53 . Core Remaining (%) 100 | 100 . . Volleys Fired 61 | . 48 13 Largest 2 | . 2 2 Hottest 70 | . 70 70 Shots Fired 113 | . 92 21 Gun 98 | . 84 14 Cannon . | . . . Launcher 15 | . 8 7 Special . | . . . Kinetic 65 | . 57 8 Thermal 33 | . 27 6 Explosive 15 | . 8 7 Electromagnetic . | . . . Robot Hit Streak 14 | . 14 10 Robot Miss Streak 3 | . 3 2 Penetration Max . | . . . Secondary Targets 1 | . 1 . Max Gunslinging Chain 1 | . 1 . Shots Hit Robots 70 | . 57 13 Core Hits 47 | . 37 10 Critical Kills . | . . . Critical Parts Destroyed . | . . . Critical Strikes 2 | . 1 1 Burn 2 | . 1 1 Melee Attacks . | . . . Impact . | . . . Slashing . | . . . Piercing . | . . . Sneak Attacks . | . . . Combat Hostiles . | . . . Follow-up Attacks . | . . . Damage Inflicted 1689 | . 1265 424 Guns 628 | . 536 92 Cannons . | . . . Explosions 1061 | . 729 332 Melee . | . . . Ramming . | . . . Kinetic 315 | . 272 43 Thermal 313 | . 264 49 Explosive 1061 | . 729 332 Electromagnetic . | . . . Impact . | . . . Slashing . | . . . Piercing . | . . . Highest Corruption . | . . . Average Corruption . | . . . Corruption Purged . | . . . Corruption Blocked . | . . . Overload Shots . | . . . Overflow Damage 37 | . 8 29 Projectiles . | . . . Explosions 37 | . 8 29 Melee . | . . . Knockbacks . | . . . Impact . | . . . Kinetic . | . . . Secondary . | . . . Self-Inflicted Damage 76 | . . 76 Shots 3 | . . 3 Rammed 1 | . . 1 Targets Rammed 1 | . . 1 Kicked . | . . . Crushed . | . . . Highest Temperature 208 | . 208 . Average Temperature 55 | . 55 . Received Heat Transfer 270 | . 222 48 Siege Activations . | . . . Martial Activations . | . . . Shielding Activations . | . . . Robots Disrupted . | . . . Combat Hostiles . | . . . Robots Corrupted . | . . . Combat Hostiles . | . . . Parts Fried . | . . . Impact Corruptions . | . . . Robots Melted . | . . . Combat Hostiles . | . . . Parts Melted 2 | . 2 . Heat Transferred 1073 | . 851 222 Parts Sabotaged . | . . . Parts Stolen . | . . . Parts Stripped . | . . . Power Chain Reactions . | . . . Alert | -11 -10 -10 ------- Run | Yrd Mat Sub Maximum Alert Level 1 | . 1 . Low Security (%) 99 | 100 98 . Level 1 . | . 1 . Level 2 . | . . . Level 3 . | . . . Level 4 . | . . . Level 5 . | . . . High Security . | . . . Max Security . | . . . Peak Influence 201 | . 201 . Initial . | . . . Average 64 | . 67 . Influence Increases 879 | . 684 195 Destroy 0b10 Robot/C 460 | . 400 60 Destroy 0b10 Robot/NC 15 | . 15 . Destroy Leader 92 | . 92 . Successful Hack 38 | . 38 . Disable Machine 45 | . 45 . Destroy Structure 34 | . 34 . Partial Spotted 15 | . 15 . Lose Combat Pursuer 180 | . 45 135 Influence Decreases 820 | . 522 298 Entered New Map 78 | . . 78 Time Decay 472 | . 342 130 Lost Part 120 | . 30 90 Purge Threat 150 | . 150 . Squads Dispatched 5 | . 5 . Investigation 4 | . 4 . Extermination . | . . . Reinforcement 1 | . 1 . Assault . | . . . Garrison . | . . . Intercept . | . . . Searches Triggered . | . . . Construction Impeded . | . . . Haulers Reinforced . | . . . Active Scanning Responses . | . . . Cargo Convoy Interrupts . | . . . Stealth | -11 -10 -10 --------- Run | Yrd Mat Sub Distress Signals 2 | . 2 . Communications Jammed . | . . . Distress Signals . | . . . Times Spotted 50 | . 33 17 Peak Tracking Total 6 | . 6 5 Tactical Retreats 6 | . 3 3 Traps | -11 -10 -10 ------- Run | Yrd Mat Sub Traps Triggered 4 | . 4 . Indirectly . | . . . Trap Hack Attempts . | . . . Triggered . | . . . Disarmed . | . . . Reprogrammed . | . . . Reused . | . . . Traps Extracted . | . . . Installed . | . . . Triggered . | . . . Machines | -11 -10 -10 ---------- Run | Yrd Mat Sub Machines Disabled 5 | . 3 2 Max in Single Turn 2 | . 2 2 Machines Repaired . | . . . Machines Dismantled . | . . . Machines Sabotaged . | . . . Overloaded Fab Kills . | . . . Hacking | -11 -10 -10 --------- Run | Yrd Mat Sub Machines Accessed 7 | . 7 . Terminals 5 | . 5 . Fabricators . | . . . Repair Stations 1 | . 1 . Recycling Units 1 | . 1 . Scanalyzers . | . . . Garrison Access . | . . . Total Hacks 22 | . 22 . Successful 12 | . 12 . Failed 9 | . 9 . Catastrophic 4 | . 4 . Database Lockouts 1 | . 1 . Manual 17 | . 17 . Terminals 17 | . 17 . Fabricators . | . . . Repair Stations 3 | . 3 . Recycling Units 2 | . 2 . Scanalyzers . | . . . Garrison Access . | . . . Terminal Hacks 8 | . 8 . Record 2 | . 2 . Part Schematic 1 | . 1 . Unreport Threat 1 | . 1 . Transport Status 1 | . 1 . Investigation Status 1 | . 1 . Recall Investigation 1 | . 1 . Zone Layout 1 | . 1 . Fabricator Hacks . | . . . Repair Station Hacks 2 | . 2 . Scan Component 1 | . 1 . Repair 1 | . 1 . Recycling Unit Hacks 2 | . 2 . Retrieve Matter 2 | . 2 . Scanalyzer . | . . . Garrison Access Hacks . | . . . Unauthorized Hacks . | . . . Terminals . | . . . Fabricators . | . . . Repair Stations . | . . . Recycling Units . | . . . Scanalyzers . | . . . Garrison Access . | . . . Data Cores Recovered . | . . . Used . | . . . Hacking Detections 6 | . 6 . Full Trace Events 1 | . 1 . Feedback Events . | . . . Feedback Blocked . | . . . Robot Schematics Acquired . | . . . Robots Built . | . . . Authchips . | . . . Time . | . . . Total Robot Build Rating . | . . . Part Schematics Acquired 1 | . 1 . Parts Built . | . . . Authchips . | . . . Time . | . . . Total Part Build Rating . | . . . Part Studies Acquired . | . . . Parts Repaired 1 | . 1 . Time 13 | . 13 . Parts Recycled . | . . . Recycled Matter . | . . . Retrieved Matter . | . . . Retrieved Components . | . . . Parts Scanalyzed . | . . . Part Schematics Acquired . | . . . Parts Damaged . | . . . Bothacking | -11 -10 -10 ------------ Run | Yrd Mat Sub Used RIF Installer . | . . . Robots Hacked . | . . . Non-combat . | . . . Combat . | . . . Robot Hacks Applied . | . . . Relay Couplers Released . | . . . Fabnet Peak Effective % . | . . . Robots Rewired . | . . . Allies Hacked . | . . . Hacks Repelled . | . . . Allies | -11 -10 -10 -------- Run | Yrd Mat Sub Total Allies . | . . . Largest Group . | . . . Highest-Rated Group . | . . . Highest-Rated Ally . | . . . Total Orders . | . . . Ally Attacks . | . . . Total Damage . | . . . Kills . | . . . Allies Corrupted . | . . . Allies Melted . | . . . Intel | -11 -10 -10 ------- Run | Yrd Mat Sub Active Infowar (turns) 132 | . 132 . Terrain 132 | . 132 . Robot Analysis Total . | . . . Derelict Logs Recovered . | . . . Drone Launches . | . . . Drone Recoveries . | . . . Exploration | -11 -10 -10 ------------- Run | Yrd Mat Sub Turns Passed 2042 | 72 1695 275 Spaces Moved 1239 | 43 961 235 Core 8 | 8 . . Treads 853 | 35 818 . Legs . | . . . Wheels 378 | . 143 235 Hover . | . . . Flight . | . . . Fastest Speed 50 | 50 95 95 Average Speed 145 | 146 157 98 Slowest Speed 240 | 160 240 110 Overloaded Moves . | . . . Propulsion Burnouts . | . . . Robots Hopped . | . . . Potential Cave-ins . | . . . Cave-ins Triggered . | . . . Exploration Rate (%) 38 | 4 93 17 Regions Visited 2 Branch Regions 1 Pre-discovered Areas . | . . . Known Exits Taken . | . . . Unknown Exits Taken 2 | 1 1 . Scrap Searched . | . . . Spaces Dug . | . . . Terrain Destroyed 77 | . 33 44 Melee . | . . . Projectile . | . . . AOE 77 | . 33 44 Terrain Rammed . | . . . Walls Destroyed . | . . . Machines Disabled . | . . . Actions | -11 -10 -10 --------- Run | Yrd Mat Sub Total 1361 | 49 1055 257 Wait 13 | . 13 . Move 1237 | 42 960 235 Hop . | . . . Pick Up 13 | 1 11 1 Fast Attach 9 | 6 3 . Attach 5 | . 2 3 Detach . | . . . Swap 20 | . 16 4 Drop 2 | . 2 . Fire 61 | . 48 13 Melee . | . . . Ram 1 | . . 1 Kick . | . . . Crush . | . . . Escape Stasis . | . . . Rewire . | . . . Trap . | . . . Miscellaneous . | . . . Route ------- -11/Scrapyard -10/Materials (discovered 6 exits: [*Mat x3] / [*Min x2] / [*Sub]) -10/Subcaves (discovered 1 exit: [*Rec]) History --------- Turn | Location | Event 13 | -11/Scrapyard | Discovered new exit (range 16) 73 | -11/Scrapyard | Entered Materials 318 | -10/Materials | Build established: Mutant 595 | -10/Materials | Discovered new exit (range 16) 753 | -10/Materials | Discovered new exit (range 7) 922 | -10/Materials | Discovered new exit (range 8) 940 | -10/Materials | Central database locked down 997 | -10/Materials | Discovered new exit (range 6) 1365 | -10/Materials | Discovered new exit (range 16) 1414 | -10/Materials | Core integrity fell below 50% 1534 | -10/Materials | Discovered new exit (range 12) 1714 | -10/Materials | Repaired Grenade Launcher 1768 | -10/Materials | Entered Subcaves 1769 | -10/Subcaves | Approached by a straggling Scientist 1917 | -10/Subcaves | Ambushed by Subdweller buried in earth 1920 | -10/Subcaves | Discovered new exit (range 11) 1944 | -10/Subcaves | Ambushed by Subdwellers from Twisted Machinery 2016 | -10/Subcaves | Core integrity fell below 20% 2043 | -10/Subcaves | Destroyed by EQ-QCP(R) with Subdweller Machine Gun Last Messages --------------- Lgt. Assault Rifle destroyed. S-10 Pest destroyed. Ion Engine destroyed. Destroyed Ion Engine. Grenade Launcher destroyed. S-10 Pest destroyed. Flight Unit fries itself beyond repair. Lgt. Ion Engine fries itself beyond repair. Lgt. Assault Rifle destroyed. Lgt. Ion Engine fries itself beyond repair. Flight Unit fries itself beyond repair. Sub. Monowheel destroyed. Lgt. Assault Rifle fries itself beyond repair. EQ-QCP(R) suffers critical hit (Burn). Weapon Shielding destroyed. Med. Laser destroyed. Sub. Monowheel destroyed. Slammed into EQ-QCP(R). Multitool destroyed. The unstable cave ceiling collapses. Map ----- +----------------------------------------------------+ | ???????????????????????????????????????????? | | ???????????????????????????????????????????? | | ???????????????????????????????????????????? | | ???????????????????????????????????????????? | | ???????????????????????????????????????????? | | ???????????????????????????????????????????? | | ???????????????????????????????????????????? | | ???????????????????????????????????????????? | | ?????????????????????##??" ????????????????? | | ?????????????????????# "? ????????????????? | | ?????????????????????# "" ????????????????? | | ?????????????????#???# " #???????????????? | | ????????????????? ### "" #???????????????? | | ?????????????????? " #???????????????? | | ????????????????" "" ???????????????? | | ?????????????????? " ??###??????????? | | ????????????????????# # #### ##?????????? | | ?????????????????????? #?????????? | | ????????????##???????????# ##?######## | | ????????????# #####?????## ### ## # | | ?????????????# #?????# ### | | ??????????????# ##????# #### | | ??????????????## #?#### #### # # # | | ??????????????## #?# ############## | | ???????????????# ### #??????????? | | ???????????????# @## #??????????? | | ???????????????## R ####??????????? | | ????????????????# R ###?????????????? | | ????????????????# ##???????????????? | | ????????????????## #????????????????? | | ?????????????????# ## #???????????????? | | ?????????????????# ### #??????????????? | | ????????????????# #?## #??????????????? | | ???????????????# % ??? #?????????????? | | ???????????????# % ?? #?????????????? | | ???????????????## ?? ##?????????????? | | ????????????????## ??###??????????????? | | ?????????????????# % #??????????????????? | | ?????????????????### ###??????????????????? | | ??????????????????? ????????????????????? | | ??????????????????? ?????????????????????? | | ???????????????????# ?????????????????????? | | ???????????????????? ?????????????????????? | | ???????????????????????????????????????????? | | ???????????????????????????????????????????? | | ???????????????????????????????????????????? | | ???????????????????????????????????????????? | | ???????????????????????????????????????????? | | ???????????????????????????????????????????? | | ???????????????????????????????????????????? | +----------------------------------------------------+ Best States ------------- Heat Dissipation 25 Energy Generation 10 Energy Capacity 250 Matter Stores 296 Matter Capacity 300 Sight Range 16 Terrain Scan Range 14 Terrain Scan Density 10 Propulsion Shielding 33 Weapon Shielding 33 Evasion (%) 41 Recoil Reduction 2 Item Schematics ----------------- Assault Rifle | -10/Materials | Hacked Robot Schematics ------------------ None Fabricated ------------ Nothing Repaired ---------- Grenade Launcher | 11% | -10/Materials Studied --------- None Alien Tech Used ----------------- None Achievements -------------- Do Not Disturb Challenges ------------ None Game ------ Seed ReinforcedThermalStorm Manual? 0 Play Time 00:18:43 Cumulative 4.8 hours Start 2026.07.29 @ 20:50:44 End 2026.07.29 @ 21:09:16 Sessions 1 Manual Loads 0 Difficulty Rogue Special Mode None Game No. 14 Rogue 14 Adventurer 0 Explorer 0 Win Type - Total 0 Types 0/0/0/0/0/0/0/0/0/0 Lore% 11 Gallery% 10 Achievement% 12 Wizard Run 0 Options --------- Layout 1 ASCII 0 Keyboard 0 Movement Arrows Keybinds 0 Fullscreen 2 Font 36/X11 Map View 50x40 Zoom Use 0% Tactical HUD 0 Map Filters NONE Filters NONE Steam 1 RUN: 31c533d6-9532-42a8-b90e-39153479f4ee